bitfinex-derivatives/quotes_SOLF0:USTF0_20241211
["timestamp","ask_amount","ask_price","bid_price","bid_amount"]
[1733938944650,9.87300184,229.53,229.5,5.44360571]
[1733938945354,2.1761,229.52,229.51,5.44360571]
[1733938946058,4.3561,229.52,229.51,5.44360571]
[1733938950854,2.1765,229.48,229.45,9.86980184]
[1733938951250,2.1765,229.48,229.46,5.44355556]
[1733938951457,2.1765,229.48,229.47,5.44355556]
[1733938955260,2.1765,229.48,229.45,7.69300184]
[1733938955956,2.18,229.52,229.47,7.69300184]
[1733938956258,2.1764,229.49,229.47,7.69300184]
[1733938956454,2.18,229.52,229.47,7.69300184]
[1733938956859,2.1762,229.52,229.49,7.69300184]
[1733938957059,1.4239,229.63,229.51,7.69300184]
[1733938957264,7.69300184,229.59,229.53,7.69300184]
[1733938957564,2.18,229.58,229.53,7.69300184]
[1733938958960,7.69300184,229.57,229.48,2.1764]
[1733938959162,7.69300184,229.57,229.5,7.69300184]
[1733938959957,7.69300184,229.51,229.45,5.28538064]
[1733938960162,7.69300184,229.51,229.45,12.97838248]
[1733938960563,2.1767,229.47,229.45,12.97838248]
[1733938962856,7.69300184,229.51,229.45,12.97838248]
[1733938962857,2.1767,229.46,229.45,12.97838248]
[1733938964068,2.1766,229.47,229.45,12.97838248]
[1733938964762,2.1766,229.47,229.4,9.87030184]
[1733938964763,9.86960184,229.47,229.4,9.87030184]
[1733938964967,7.69300184,229.47,229.42,2.17940894]
[1733938965162,9.87300184,229.47,229.42,2.17940894]
[1733938965564,2.18,229.47,229.44,7.69300184]
[1733938965871,4.3566,229.47,229.44,7.69300184]
[1733938966072,2.18,229.47,229.46,7.69300184]
[1733938966271,2.18,229.51,229.46,7.69300184]
[1733938966472,2.1765,229.49,229.46,9.86970184]
[1733938966969,1.4023,229.61,229.52,2.1761]
[1733938966970,2.18,229.57,229.52,2.1761]
[1733938967167,2.18,229.57,229.53,7.69300184]
[1733938967872,2.815,229.69,229.56,7.69300184]
[1733938968166,9.87300184,229.68,229.63,7.69300184]
[1733938968368,9.87300184,229.68,229.56,2.18]
[1733938968562,9.87300184,229.68,229.63,7.69300184]
[1733938968765,7.69300184,229.68,229.63,7.69300184]
[1733938968971,2.18,229.67,229.63,7.69300184]
[1733938969167,42.96571154,229.7,229.63,12.00018833]
[1733938969370,45.14571154,229.7,229.64,5.43988925]
[1733938969572,45.14571154,229.7,229.65,5.43988925]
[1733938969770,45.14571154,229.7,229.66,5.43988925]
[1733938969974,2.18,229.7,229.66,12.00018833]
[1733938970165,485.11329574,229.94,229.67,5.43959584]
[1733938970368,2.1741,229.73,229.68,5.43959584]
[1733938970564,2.18,229.77,229.69,5.43959584]
[1733938970763,2.18,229.77,229.7,5.43959584]
[1733938970963,2.18,229.77,229.71,5.43959584]
[1733938971166,2.18,229.77,229.66,12.00018833]
[1733938971370,2.18,229.77,229.67,5.43898542]
[1733938971568,2.18,229.77,229.68,5.43898542]
[1733938971772,2.18,229.77,229.69,5.43898542]
[1733938971974,2.18,229.77,229.7,5.43898542]
[1733938972169,2.18,229.77,229.71,5.43898542]
[1733938972378,2.18,229.77,229.66,12.00018833]
[1733938972568,2.18,229.77,229.67,5.43874139]
[1733938972873,2.18,229.77,229.68,5.43874139]
[1733938973071,2.18,229.77,229.69,5.43874139]
[1733938973271,2.18,229.77,229.64,2.18]
[1733938973469,2.1745,229.69,229.65,5.43873121]
[1733938973771,2.1745,229.69,229.66,5.43873121]
[1733938973967,2.1745,229.69,229.67,5.43873121]
[1733938974164,2.174,229.75,229.68,5.43873121]
[1733938974364,2.18,229.77,229.69,5.43873121]
[1733938974672,2.1743,229.71,229.7,5.43873121]
[1733938975572,2.1746,229.68,229.63,14.17518833]
[1733938975772,2.1746,229.68,229.64,5.43880943]
[1733938975974,2.1746,229.68,229.65,5.43880943]
[1733938976273,2.1746,229.68,229.66,5.43880943]
[1733938976465,2.1746,229.68,229.67,5.43880943]
[1733938979676,2.1743,229.72,229.67,7.61350943]
[1733938980372,2.18,229.77,229.67,7.61350943]
[1733938980373,2.18,229.77,229.68,5.43880943]
[1733938980568,2.18,229.77,229.67,2.1747]
[1733938980768,2.18,229.77,229.68,5.43857341]
[1733938981067,2.18,229.76,229.69,5.43854687]
[1733938981272,2.18,229.76,229.67,2.1747]
[1733938981468,2.18,229.76,229.68,5.43854687]
[1733938981771,2.18,229.76,229.69,5.43854687]
[1733938981977,2.1743,229.71,229.66,11.01598675]
[1733938982476,2.1743,229.71,229.67,5.43855019]
[1733938982677,2.1745,229.69,229.68,5.43855019]
[1733938983376,2.1747,229.68,229.66,5.30768675]
[1733938983681,2.1747,229.68,229.67,5.43872556]
[1733938985079,2.1748,229.67,229.58,1.3979]
[1733938985279,12.00018833,229.67,229.59,5.44020254]
[1733938985474,12.00018833,229.67,229.6,5.44020254]
[1733938985678,12.00018833,229.67,229.53,12.00018833]
[1733938985975,12.00018833,229.67,229.54,5.44081017]
[1733938986176,12.00018833,229.67,229.55,5.44081017]
[1733938986380,12.00018833,229.67,229.56,5.44081017]
[1733938986579,2.795,229.69,229.57,5.44081017]
[1733938986580,12.00018833,229.61,229.57,5.44081017]
[1733938986878,2.18,229.6,229.49,6.55187945]
[1733938987077,2.18,229.6,229.5,5.44270407]
[1733938987375,2.18,229.6,229.51,5.44270407]
[1733938987583,2.18,229.6,229.52,5.44270407]
[1733938987784,2.18,229.6,229.53,5.44270407]
[1733938987974,2.18,229.6,229.49,6.55187945]
[1733938988380,2.18,229.6,229.5,5.44251747]
[1733938988579,2.1759,229.54,229.51,5.44251747]
[1733938988780,2.1759,229.54,229.52,5.44251747]
[1733938988976,2.1759,229.54,229.53,5.44251747]
[1733938993982,4.3559,229.54,229.53,5.44251747]
[1733938994185,2.18,229.54,229.43,1.4554]
[1733938994486,2.1769,229.44,229.43,1.4554]
[1733938994685,2.1769,229.44,229.43,12.0292999]
[1733938994988,2.18,229.49,229.43,12.0292999]
[1733938995189,2.18,229.49,229.44,5.44379871]
[1733938995386,2.18,229.49,229.45,5.44379871]
[1733938995586,2.18,229.49,229.43,6.58550119]
[1733938995789,2.18,229.49,229.44,5.44396383]
[1733938995982,2.18,229.49,229.45,5.44396383]
[1733938996182,2.18,229.49,229.46,5.44396383]
[1733938996486,2.18,229.49,229.47,5.44396383]
[1733938996785,14.18018833,229.49,229.4,1.394]
[1733938996988,14.18018833,229.49,229.41,5.44479144]
[1733938997189,14.18018833,229.49,229.42,5.44479144]
[1733938997390,2.1769,229.44,229.43,5.44479144]
[1733938997594,4.3569,229.44,229.43,5.44479144]
[1733939001897,2.18,229.44,229.4,2.17959895]
[1733939002201,2.1772,229.41,229.4,2.17959895]
[1733939002401,2.1772,229.41,229.4,7.62504936]
[1733939002704,2.1772,229.41,229.4,2.17959895]
[1733939002896,2.1772,229.41,229.4,7.62548623]
[1733939003301,2.1772,229.41,229.4,2.17959895]
[1733939003601,2.1777,229.36,229.34,2.7338]
[1733939003901,2.1777,229.36,229.3,13.43718833]
[1733939003902,2.18,229.38,229.35,5.44610032]
[1733939004104,2.178,229.33,229.3,1.437]
[1733939004303,2.18,229.36,229.3,1.437]
[1733939004606,2.1778,229.35,229.31,5.44659042]
[1733939004906,2.18,229.36,229.32,5.44659042]
[1733939005100,2.18,229.36,229.33,5.44659042]
[1733939005298,2.18,229.36,229.34,5.44673246]
[1733939005601,14.18018833,229.36,229.17,2.18]
[1733939005802,12.00018833,229.32,229.26,5.44747734]
[1733939006105,12.00018833,229.29,229.27,5.44747734]
[1733939006302,12.00018833,229.29,229.19,2.7232]
[1733939006504,2.1786,229.27,229.2,5.44853868]
[1733939006800,2.18,229.26,229.21,5.44853868]
[1733939007006,2.18,229.26,229.22,5.44853868]
[1733939007201,2.18,229.26,229.23,5.44853868]
[1733939007503,2.18,229.26,229.24,5.44853868]
[1733939007696,2.18,229.26,229.25,5.44853868]
[1733939007697,4.3586,229.26,229.25,5.44853868]
[1733939009094,16.35878833,229.26,229.25,5.44853868]
[1733939009295,14.18018833,229.26,229.1,12.00018833]
[1733939009500,14.18018833,229.26,229.16,5.31212377]
[1733939009699,14.18018833,229.26,229.17,5.45000934]
[1733939009894,14.18018833,229.26,229.18,5.45000934]
[1733939010102,2.1792,229.21,229.19,5.45000934]
[1733939010303,2.18,229.21,229.2,5.45000934]
[1733939010803,4.3591,229.21,229.2,5.45000934]
[1733939011001,2.18,229.21,229.2,5.45000934]
[1733939011200,2.1788,229.25,229.16,5.31212377]
[1733939011395,2.18,229.23,229.17,5.44984681]
[1733939011597,2.18,229.23,229.18,5.44984681]
[1733939011796,2.1788,229.25,229.19,5.44984681]
[1733939011997,2.18,229.24,229.2,5.44984681]
[1733939012203,2.18,229.24,229.21,5.44984681]
[1733939012400,2.18,229.24,229.17,4.1647]
[1733939012598,2.18,229.24,229.18,5.44951392]
[1733939012799,2.18,229.24,229.19,5.44951392]
[1733939013097,2.18,229.25,229.2,5.44951392]
[1733939013400,2.18,229.25,229.21,5.44951392]
[1733939013699,2.18,229.25,229.17,4.1647]
[1733939013899,2.18,229.25,229.21,2.179]
[1733939014108,2.18,229.25,229.22,5.44945107]
[1733939014305,2.18,229.25,229.21,2.179]
[1733939014606,2.18,229.25,229.22,5.44942936]
[1733939014899,2.1786,229.27,229.22,2.1789]
[1733939015106,2.18,229.28,229.17,4.1647]
[1733939015405,2.1786,229.26,229.18,5.44915595]
[1733939015706,2.18,229.28,229.22,2.1789]
[1733939015898,4.3584,229.28,229.23,5.44915595]
[1733939016096,4.3584,229.28,229.24,2.1788]
[1733939016903,2.1784,229.28,229.24,2.1788]
[1733939017097,2.1784,229.28,229.19,12.00018833]
[1733939017302,2.18,229.29,229.2,5.44901794]
[1733939017498,2.18,229.29,229.21,5.44901794]
[1733939017702,2.18,229.29,229.22,5.44901794]
[1733939018007,2.1788,229.25,229.17,4.1647]
[1733939018308,2.1788,229.25,229.2,2.1791]
[1733939018502,2.1788,229.25,229.21,5.44931429]
[1733939018706,2.1788,229.25,229.22,5.44931429]
[1733939018905,2.1788,229.25,229.23,5.44931429]
[1733939019105,2.1788,229.25,229.2,2.1791]
[1733939019403,2.1788,229.25,229.21,5.44917912]
[1733939019599,2.1788,229.25,229.22,5.44917912]
[1733939019801,2.1788,229.25,229.23,5.44917912]
[1733939020005,2.1788,229.25,229.21,2.179]
[1733939020307,2.1788,229.25,229.22,5.44917912]
[1733939020506,2.1788,229.25,229.23,5.44917912]
[1733939020710,2.1788,229.25,229.24,5.44917912]
[1733939023310,14.17868833,229.28,229.24,5.44917912]
[1733939023509,14.17868833,229.28,229.23,2.1789]
[1733939023510,2.1785,229.28,229.25,5.44917912]
[1733939023710,2.18,229.29,229.26,5.44915923]
[1733939023911,4.3583,229.29,229.2,2.1791]
[1733939024108,4.3583,229.29,229.21,5.44903588]
[1733939024406,4.3583,229.29,229.25,2.1786]
[1733939024611,2.18,229.3,229.26,5.44903588]
[1733939024808,2.18,229.3,229.27,5.44903588]
[1733939025006,2.18,229.3,229.28,5.44903588]
[1733939025202,4.3582,229.3,229.29,5.44903588]
[1733939025409,2.18,229.3,229.17,9.30742893]
[1733939025605,2.18,229.3,229.22,2.1789]
[1733939025803,2.1786,229.27,229.23,5.44893969]
[1733939026010,2.1786,229.27,229.24,5.44893969]
[1733939026313,2.1786,229.27,229.25,5.44893969]
[1733939026511,2.1786,229.27,229.26,5.44893969]
[1733939027812,2.18,229.3,229.26,5.44893969]
[1733939028005,2.18,229.3,229.27,5.44893969]
[1733939028006,2.1783,229.29,229.27,5.44893969]
[1733939028316,2.18,229.3,229.28,5.44893969]
[1733939028515,4.3582,229.3,229.29,5.44893969]
[1733939031513,2.18,229.3,229.29,5.44893969]
[1733939032609,4.3582,229.3,229.29,5.44893969]
[1733939033012,4.3582,229.3,229.2,15.25557382]
[1733939033209,4.3582,229.3,229.21,5.44841927]
[1733939033513,2.1782,229.3,229.22,5.44841927]
[1733939033713,2.1782,229.3,229.23,5.44841927]
[1733939034110,2.1782,229.3,229.24,5.44841927]
[1733939034315,2.1782,229.3,229.25,5.44841927]
[1733939034513,2.1782,229.3,229.26,5.44841927]
[1733939034709,2.1782,229.3,229.27,5.44841927]
[1733939035013,2.1782,229.3,229.28,5.44841927]
[1733939035317,2.1782,229.3,229.29,5.44841927]
[1733939035914,14.17838833,229.3,229.29,5.44841927]
[1733939036115,12.00018833,229.3,229.21,2.179]
[1733939036419,2.1787,229.25,229.21,2.179]
[1733939036719,2.1787,229.25,229.22,7.62773062]
[1733939036912,2.1786,229.26,229.23,5.44873062]
[1733939037115,2.1786,229.26,229.24,5.44873062]
[1733939037413,2.1786,229.26,229.25,5.44873062]
[1733939038410,14.18018833,229.26,229.17,6.55812893]
[1733939038609,12.00018833,229.23,229.17,6.55812893]
[1733939039222,2.1791,229.21,229.17,6.55812893]
[1733939039416,4.3591,229.21,229.17,6.55812893]
[1733939039617,2.18,229.21,229.19,2.1792]
[1733939039822,2.18,229.25,229.19,2.1792]
[1733939040322,2.179,229.23,229.19,2.1792]
[1733939041021,12.00018833,229.23,229.17,6.55812893]
[1733939041926,2.1791,229.21,229.17,6.55812893]
[1733939042517,12.00018833,229.23,229.17,6.55812893]
[1733939042822,2.18,229.25,229.17,6.55812893]
[1733939043125,2.1791,229.22,229.18,2.1793]
[1733939043318,2.18,229.24,229.18,2.1793]
[1733939043516,2.18,229.24,229.17,6.55812893]
[1733939043926,12.00018833,229.23,229.11,15.26053727]
[1733939044128,12.00018833,229.23,229.12,15.26053727]
[1733939044324,12.00018833,229.23,229.12,2.1798]
[1733939044325,2.1792,229.2,229.12,2.1798]
[1733939044526,2.18,229.19,229.11,1.4556]
[1733939044923,2.1795,229.17,229.11,1.4556]
[1733939045224,2.1795,229.17,229.11,16.71763556]
[1733939045626,2.1795,229.17,229.11,1.4556]
[1733939045924,2.1796,229.16,229.14,5.32601322]
[1733939046123,2.18,229.19,229.11,1.4556]
[1733939046322,12.00018833,229.17,229.11,16.71775718]
[1733939046519,12.00018833,229.17,229.11,1.4556]
[1733939046723,2.1799,229.12,229.1,1.3708]
[1733939047220,2.1801,229.11,229.06,17.4450041]
[1733939047427,14.18018833,229.14,229.06,2.1805]
[1733939047620,14.18018833,229.14,229.05,5.24648144]
[1733939047821,14.18018833,229.14,229.06,2.1804]
[1733939048022,2.18,229.13,229.06,2.1804]
[1733939048226,2.18,229.13,229.05,5.24648144]
[1733939049230,2.1802,229.09,229.05,7.42708144]
[1733939049530,2.18,229.13,229.05,5.24648144]
[1733939050029,2.18,229.15,229.05,20.51419207]
[1733939050230,2.18,229.15,229.05,21.91399207]
[1733939050422,2.1798,229.14,229.06,5.45216002]
[1733939050627,2.18,229.15,229.07,5.45216002]
[1733939050925,2.18,229.15,229.08,5.45216002]
[1733939051129,2.1797,229.14,229.1,2.1801]
[1733939051429,2.1797,229.14,229.11,5.45207749]
[1733939051630,2.1797,229.14,229.12,5.45207749]
[1733939051829,2.1797,229.14,229.1,2.1801]
[1733939051830,2.1797,229.14,229.13,5.45207749]
[1733939054434,2.1797,229.14,229.13,5.4520744]
[1733939055333,2.18,229.15,229.13,5.4520744]
[1733939055635,2.18,229.15,229.14,5.4520744]
[1733939056033,2.1794,229.18,229.14,5.4520744]
[1733939056234,4.3594,229.18,229.15,5.4520744]
[1733939056431,4.3594,229.18,229.16,5.4520744]
[1733939056729,4.3594,229.18,229.17,5.4520744]
[1733939057331,2.18,229.18,229.09,12.00018833]
[1733939057738,2.1792,229.2,229.12,12.00018833]
[1733939057936,14.18018833,229.2,229.07,1.4581]
[1733939058136,12.00018833,229.17,229.07,1.4581]
[1733939058437,2.18,229.12,229.07,3.6384]
[1733939058735,2.18,229.14,229.07,1.4581]
[1733939059334,2.18,229.14,229.07,3.6385]
[1733939059837,2.18,229.14,229.07,1.4581]
[1733939060332,2.1802,229.1,229.07,1.4581]
[1733939061334,2.1803,229.09,229.04,1.3865]
[1733939061538,2.18,229.14,229.04,6.59860564]
[1733939062140,2.1801,229.1,229.04,6.59860564]
[1733939063241,2.1801,229.1,229.06,2.1804]
[1733939063534,2.1801,229.1,229.04,6.59860564]
[1733939063740,14.18018833,229.14,229.04,1.3865]
[1733939066045,2.1803,229.09,229.04,3.5671]
[1733939066246,2.1803,229.09,229.04,1.3865]
[1733939067547,2.1803,229.09,229.05,2.1805]
[1733939069742,2.1803,229.09,229.04,1.3865]
[1733939069743,2.1803,229.09,229.06,2.1805]
[1733939072646,2.1803,229.09,229.05,2.1806]
[1733939073054,2.1803,229.09,229.04,1.3865]
[1733939074357,2.1803,229.09,229.06,2.1805]
[1733939074552,2.1803,229.08,229.04,1.3865]
[1733939075549,2.1803,229.08,229.05,2.1806]
[1733939076650,9.90174961,229.08,229.05,2.1806]
[1733939077053,2.1804,229.07,229.04,2.1807]
[1733939077752,7.72144961,229.08,229.05,2.1806]
[1733939078454,2.1803,229.08,229.05,2.1806]
[1733939079351,2.18,229.09,229.06,2.1804]
[1733939079751,9.90144961,229.09,229.03,5.14392936]
[1733939079946,7.72144961,229.05,228.97,1.3453]
[1733939080152,7.72144961,228.99,228.92,7.72144961]
[1733939080651,2.18,229.04,228.92,7.72144961]
[1733939080860,1.4576,229.08,228.98,7.72144961]
[1733939081052,2.18,229.05,229.0,7.72144961]
[1733939081553,2.18,229.05,229.04,2.1807]
[1733939082952,12.08174961,229.09,229.05,2.1805]
[1733939083756,7.72144961,229.09,229.06,2.1805]
[1733939084250,7.72144961,229.09,229.02,7.72144961]
[1733939084453,7.72144961,229.07,229.04,2.1806]
[1733939086554,2.1803,229.08,229.04,2.1806]
[1733939091964,2.1803,229.08,229.05,2.1806]
[1733939092467,2.1803,229.08,229.03,5.26889823]
[1733939093469,9.90164961,229.09,229.03,5.26889823]
[1733939094168,4.3601,229.1,229.03,5.26889823]
[1733939094564,2.18,229.12,229.04,7.72144961]
[1733939094868,2.18,229.11,229.04,7.72144961]
[1733939095069,9.90144961,229.12,229.04,7.72144961]
[1733939096469,9.90144961,229.12,229.06,7.72144961]
[1733939096664,2.1802,229.1,229.07,2.1804]
[1733939097170,9.90144961,229.12,229.07,2.1804]
[1733939097362,2.18,229.11,229.07,2.1804]
[1733939097564,2.18,229.11,229.08,2.1803]
[1733939097765,9.90144961,229.12,229.08,2.1803]
[1733939097963,2.18,229.14,229.09,2.1801]
[1733939098167,2.18,229.15,229.08,7.72144961]
[1733939098465,2.18,229.15,229.04,2.18]
[1733939098665,2.18,229.15,229.09,7.72144961]
[1733939099264,2.8075,229.24,229.13,7.72144961]
[1733939099572,7.72144961,229.16,229.05,1.3894]
[1733939099766,9.90144961,229.16,229.08,7.72144961]
[1733939100071,2.1798,229.13,229.09,7.63315253]
[1733939100368,9.90144961,229.16,229.1,5.45305253]
[1733939100563,2.1797,229.15,229.11,7.63305253]
[1733939100764,9.90144961,229.16,229.12,5.45305253]
[1733939101071,2.1797,229.15,229.13,5.45305253]
[1733939101272,2.1797,229.15,229.14,5.45305253]
[1733939101473,2.1796,229.15,229.14,5.45305253]
[1733939101672,2.18,229.16,229.14,5.45305253]
[1733939101871,2.18,229.16,229.15,5.45305253]
[1733939102071,2.18,229.16,229.12,7.72144961]
[1733939103474,2.1796,229.15,229.12,7.72144961]
[1733939103973,2.18,229.2,229.14,7.72144961]
[1733939104170,2.18,229.2,229.05,1.3894]
[1733939104376,2.1798,229.14,229.1,7.72144961]
[1733939104869,7.72144961,229.17,229.1,7.72144961]
[1733939105170,2.1798,229.13,229.1,7.72144961]
[1733939105878,2.1798,229.13,229.1,9.90154961]
[1733939106170,2.1798,229.13,229.11,5.45177396]
[1733939106478,2.1798,229.13,229.12,5.45177396]
[1733939106673,7.72144961,229.17,229.12,5.45177396]
[1733939106874,2.1797,229.14,229.13,5.45177396]
[1733939110681,2.18,229.2,229.13,5.45177396]
[1733939110882,9.06224961,229.22,229.16,7.72144961]
[1733939111085,2.18,229.2,229.17,5.45177396]
[1733939111280,9.06224961,229.22,229.14,7.72144961]
[1733939111281,2.18,229.21,229.18,5.45177396]
[1733939111479,2.18,229.21,229.19,5.45177396]
[1733939111674,2.18,229.21,229.2,5.45177396]
[1733939111675,4.3591,229.21,229.2,5.45177396]
[1733939112382,2.1791,229.21,229.2,5.45177396]
[1733939112582,4.3591,229.21,229.2,5.45177396]
[1733939112783,2.1791,229.21,229.2,5.45177396]
[1733939112989,4.3591,229.21,229.2,5.45177396]
[1733939113379,2.1791,229.21,229.2,5.45177396]
[1733939115088,2.1791,229.21,229.18,7.72144961]
[1733939115283,2.1791,229.21,229.2,5.45081383]
[1733939115479,2.1791,229.21,229.19,5.45081383]
[1733939115679,2.7524,229.3,229.2,13.17226344]
[1733939115680,1.3731,229.3,229.2,13.17226344]
[1733939115877,2.1787,229.25,229.22,7.72144961]
[1733939116082,2.1787,229.25,229.23,5.45081383]
[1733939116281,7.72144961,229.29,229.24,5.45081383]
[1733939116484,2.1786,229.26,229.25,5.45081383]
[1733939117187,2.86972175,229.26,229.25,5.45081383]
[1733939118089,2.86970641,229.26,229.25,5.45081383]
[1733939119683,2.1793,229.2,229.17,7.72144961]
[1733939119988,2.1793,229.2,229.18,5.45060377]
[1733939120188,2.1793,229.2,229.17,7.72144961]
[1733939120189,2.1793,229.2,229.19,5.45060377]
[1733939121084,2.1793,229.2,229.17,7.72144961]
[1733939121484,2.18,229.22,229.18,5.45056496]
[1733939121681,2.1791,229.21,229.19,5.45056496]
[1733939121880,2.18,229.22,229.19,5.45056496]
[1733939122085,2.18,229.22,229.2,5.45056496]
[1733939122287,2.1791,229.21,229.2,5.45056496]
[1733939122888,2.18,229.22,229.17,7.72144961]
[1733939123094,7.72144961,229.19,229.18,5.45063203]
[1733939123791,7.72144961,229.19,229.05,1.4286]
[1733939123986,7.72144961,229.13,229.06,9.9042838]
[1733939124185,4.3599,229.13,229.08,7.72144961]
[1733939124493,2.18,229.18,229.12,7.72144961]
[1733939124685,2.18,229.18,229.14,7.72144961]
[1733939124884,2.1796,229.16,229.14,7.72144961]
[1733939126891,2.1796,229.16,229.12,7.72144961]
[1733939127196,2.1797,229.15,229.12,7.72144961]
[1733939129799,2.1797,229.15,229.11,2.1799]
[1733939130000,2.1797,229.15,229.12,7.72144961]
[1733939130901,2.18,229.18,229.12,7.72144961]
[1733939131095,2.1797,229.14,229.12,7.72144961]
[1733939131889,2.18,229.18,229.12,7.72144961]
[1733939132094,2.1796,229.16,229.12,9.90134961]
[1733939132300,2.18,229.18,229.12,9.90134961]
[1733939132700,2.18,229.18,229.12,7.72144961]
[1733939132898,2.18,229.18,229.14,7.72144961]
[1733939133201,7.72144961,229.19,229.14,7.72144961]
[1733939133394,2.18,229.2,229.07,3.6257]
[1733939133601,9.90144961,229.2,229.14,7.72144961]
[1733939133803,2.1796,229.16,229.14,7.72144961]
[1733939134102,9.90144961,229.2,229.14,7.72144961]
[1733939134302,9.90144961,229.2,229.07,3.6257]
[1733939134601,7.72144961,229.16,229.1,7.72144961]
[1733939134800,7.72144961,229.16,229.08,7.72144961]
[1733939135100,2.18,229.15,229.08,7.72144961]
[1733939135504,2.1801,229.1,229.07,1.4457]
[1733939135796,2.1801,229.1,229.08,13.17340623]
[1733939136199,2.1801,229.1,229.09,5.45195662]
[1733939136898,2.18,229.11,229.09,5.45195662]
[1733939137098,2.18,229.11,229.1,5.45195662]
[1733939139101,2.18,229.11,229.08,7.72144961]
[1733939139302,2.1798,229.13,229.1,7.72144961]
[1733939139503,2.18,229.15,229.11,5.45192024]
[1733939139696,2.18,229.15,229.12,5.45192024]
[1733939139899,2.1797,229.14,229.13,5.45192024]
[1733939142405,2.1797,229.14,229.1,2.1801]
[1733939142707,2.1797,229.14,229.06,2.18283419]
[1733939142708,2.18,229.18,229.13,13.17327143]
[1733939143003,9.90144961,229.19,229.13,7.72144961]
[1733939143203,9.90144961,229.19,229.14,5.45182182]
[1733939143398,9.90144961,229.19,229.15,5.45182182]
[1733939143599,2.1794,229.18,229.16,5.45182182]
[1733939143805,2.18,229.22,229.17,5.45182182]
[1733939144106,7.72144961,229.22,229.18,5.45182182]
[1733939144301,2.18,229.23,229.19,5.45182182]
[1733939144302,2.1791,229.21,229.19,5.45182182]
[1733939144503,2.1791,229.21,229.2,5.45182182]
[1733939145602,2.1792,229.2,229.17,7.72144961]
[1733939146105,2.1792,229.2,229.18,5.45068172]
[1733939146501,2.1792,229.2,229.19,5.45068172]
[1733939147099,179.79477691,229.31,229.19,13.17213133]
[1733939147402,0.69126976,229.3,229.28,7.72144961]
[1733939147606,2.1782,229.3,229.29,5.45068172]
[1733939147804,5.04927174,229.3,229.29,14.16896814]
[1733939148203,5.04927174,229.3,229.29,12.36496814]
[1733939148605,12.77072135,229.3,229.29,12.36496814]
[1733939149097,12.77072135,229.3,229.16,2.18]
[1733939149098,10.59252135,229.3,229.1,2.18]
[1733939149299,7.72144961,229.22,229.15,7.72144961]
[1733939149505,7.72144961,229.2,229.11,2.18]
[1733939149707,2.1794,229.18,229.12,22.98358257]
[1733939150007,2.18,229.22,229.1,2.18]
[1733939150307,7.72144961,229.19,229.12,7.72144961]
[1733939150609,9.90074961,229.19,229.12,7.72144961]
[1733939151004,9.90074961,229.19,229.14,2.1797]
[1733939151309,2.1794,229.18,229.14,2.1797]
[1733939153910,2.1794,229.18,229.15,2.1796]
[1733939154602,9.90074961,229.19,229.15,2.1796]
[1733939155816,2.1793,229.19,229.15,2.1796]
[1733939156605,2.1793,229.19,229.14,7.72144961]
[1733939156606,1.3308,229.29,229.14,7.72144961]
[1733939156804,7.72144961,229.26,229.19,7.72144961]
[1733939157107,2.18,229.25,229.19,7.72144961]
[1733939157705,7.72144961,229.27,229.19,7.72144961]
[1733939157915,4.3586,229.26,229.21,2.1791]
[1733939158212,4.3586,229.26,229.21,7.72144961]
[1733939158213,2.1786,229.26,229.21,7.72144961]
[1733939159307,2.18,229.27,229.21,7.72144961]
[1733939159610,2.18,229.27,229.23,7.72144961]
[1733939159811,7.72144961,229.31,229.17,2.18]
[1733939159812,2.18,229.31,229.25,7.72144961]
[1733939160007,2.1782,229.3,229.25,7.72144961]
[1733939161008,2.1784,229.29,229.25,7.72144961]
[1733939161209,7.72144961,229.29,229.18,4.1169]
[1733939161415,7.72144961,229.29,229.26,5.44860225]
[1733939161613,2.1785,229.27,229.26,5.44860225]
[1733939163011,9.89994961,229.27,229.26,5.44860225]
[1733939164521,7.72144961,229.27,229.18,4.9042]
[1733939164819,1.4413,229.3,229.18,2.7249]
[1733939164820,7.72144961,229.24,229.18,2.7249]